bitfinex-derivatives/quotes_BTCF0:USTF0_20250527
["timestamp","ask_amount","ask_price","bid_price","bid_amount"]
[1748361235400,1.2968578,110230.0,110220.0,0.1813852]
[1748361235813,0.1813852,110220.0,110210.0,0.4344085]
[1748361235996,0.4913852,110220.0,110210.0,0.4544085]
[1748361236500,0.8521852,110220.0,110210.0,0.3637095]
[1748361236804,1.0791795,110220.0,110210.0,0.2471095]
[1748361236999,0.7183795,110220.0,110210.0,0.2471095]
[1748361237601,1.0791795,110220.0,110210.0,0.11196842]
[1748361237807,1.0791795,110220.0,110210.0,0.02349735]
[1748361238199,1.2653795,110220.0,110210.0,0.02249735]
[1748361239097,1.0383852,110220.0,110210.0,0.02249735]
[1748361239396,1.0383852,110220.0,110210.0,0.06990224]
[1748361240200,1.0383852,110220.0,110210.0,0.29552449]
[1748361240901,1.0383852,110220.0,110210.0,0.20389905]
[1748361241297,1.0383852,110220.0,110210.0,0.02249735]
[1748361241499,1.0383852,110220.0,110210.0,0.0667179]
[1748361241699,1.0383852,110220.0,110210.0,0.02249735]
[1748361242196,1.2653795,110220.0,110210.0,0.02249735]
[1748361242406,1.2653795,110220.0,110190.0,0.63070727]
[1748361242407,0.1814181,110200.0,110190.0,0.63070727]
[1748361242709,0.4914181,110200.0,110190.0,0.76813203]
[1748361243004,0.6738181,110200.0,110190.0,0.76813203]
[1748361243204,1.0346181,110200.0,110190.0,0.76813487]
[1748361243407,0.6738181,110200.0,110190.0,0.70908338]
[1748361243606,0.6738181,110200.0,110190.0,0.71108338]
[1748361243911,0.6738181,110200.0,110190.0,0.75795214]
[1748361244510,0.6738181,110200.0,110190.0,0.98494644]
[1748361244906,0.31,110200.0,110190.0,1.34574644]
[1748361245101,0.75933556,110210.0,110200.0,0.1814181]
[1748361245408,1.10933556,110210.0,110200.0,0.9572124]
[1748361245911,0.68465556,110210.0,110200.0,0.41819408]
[1748361246205,0.1814181,110200.0,110190.0,0.004]
[1748361246403,1.3311124,110200.0,110190.0,0.004]
[1748361246707,1.1041181,110200.0,110190.0,0.004]
[1748361246912,1.5287981,110200.0,110190.0,0.0629]
[1748361247208,1.5287981,110200.0,110190.0,0.1328]
[1748361247209,1.7557924,110200.0,110190.0,0.1328]
[1748361247409,1.7557924,110200.0,110190.0,0.012]
[1748361247599,1.7587924,110200.0,110190.0,0.01]
[1748361248913,1.7627924,110200.0,110190.0,0.01]
[1748361249106,1.7628324,110200.0,110190.0,0.01]
[1748361249308,1.7628324,110200.0,110190.0,0.8965289]
[1748361249309,0.3085381,110200.0,110190.0,0.8965289]
[1748361249507,0.18742,110200.0,110190.0,0.9563289]
[1748361249704,0.12712,110200.0,110190.0,0.9563289]
[1748361249900,0.127,110200.0,110190.0,0.9563289]
[1748361250206,0.127,110200.0,110190.0,1.0626956]
[1748361250207,0.00712,110200.0,110190.0,1.0626956]
[1748361250410,0.00312,110200.0,110190.0,1.0626956]
[1748361250707,0.00312,110200.0,110190.0,1.4874156]
[1748361250708,0.00512,110200.0,110190.0,1.4874156]
[1748361250912,0.005,110200.0,110190.0,1.21310609]
[1748361251115,0.003,110200.0,110190.0,1.44010039]
[1748361251601,0.18153826,110210.0,110200.0,0.179419]
[1748361251807,0.20153826,110210.0,110200.0,0.868679]
[1748361252206,0.26053826,110210.0,110200.0,0.868679]
[1748361252612,0.44053826,110210.0,110200.0,0.767119]
[1748361253010,0.25053826,110210.0,110200.0,0.767119]
[1748361253620,0.25153826,110210.0,110200.0,0.5877]
[1748361253804,0.60883826,110210.0,110200.0,0.2269]
[1748361254012,0.60883826,110210.0,110200.0,0.408319]
[1748361254207,0.60883826,110210.0,110200.0,0.5877]
[1748361254406,0.60883826,110210.0,110200.0,0.2269]
[1748361254617,0.60883826,110210.0,110200.0,0.27422739]
[1748361254913,0.60883826,110210.0,110200.0,0.63502739]
[1748361255216,0.96963826,110210.0,110200.0,0.2269]
[1748361255420,0.96963826,110210.0,110200.0,0.27423261]
[1748361255604,0.96963826,110210.0,110200.0,0.45565161]
[1748361256208,0.60883826,110210.0,110200.0,0.27423261]
[1748361256515,0.24153826,110210.0,110200.0,0.769119]
[1748361256714,0.00113626,110210.0,110200.0,0.769119]
[1748361256914,0.15125626,110210.0,110200.0,0.81646365]
[1748361257216,0.33265886,110210.0,110200.0,0.769119]
[1748361258021,0.82475316,110210.0,110200.0,0.769119]
[1748361258415,0.88115316,110210.0,110200.0,0.60442988]
[1748361259317,0.65415886,110210.0,110200.0,0.60442988]
[1748361259520,0.65415886,110210.0,110200.0,0.3608]
[1748361259721,0.65415886,110210.0,110200.0,0.552219]
[1748361260508,0.88115316,110210.0,110200.0,0.01]
[1748361260716,1.24195316,110210.0,110200.0,0.01]
[1748361261012,1.24195316,110210.0,110200.0,0.191419]
[1748361261218,0.88115316,110210.0,110200.0,0.191419]
[1748361261619,1.24195316,110210.0,110200.0,0.306319]
[1748361262014,0.88115316,110210.0,110200.0,0.306319]
[1748361262409,0.88115316,110210.0,110200.0,0.16920019]
[1748361263420,1.24195316,110210.0,110200.0,0.16920019]
[1748361264029,0.88115316,110210.0,110200.0,0.16920019]
[1748361264220,0.59775886,110210.0,110200.0,0.71141909]
[1748361264422,0.59763886,110210.0,110200.0,0.71141909]
[1748361264622,1.02239886,110210.0,110200.0,0.71141909]
[1748361264821,0.59763886,110210.0,110200.0,0.71141909]
[1748361265017,1.02239886,110210.0,110200.0,0.75891576]
[1748361265221,1.02235886,110210.0,110200.0,0.71461557]
[1748361266114,0.39775886,110210.0,110200.0,0.71461557]
[1748361266322,0.39763886,110210.0,110200.0,0.71461557]
[1748361267229,0.39775886,110210.0,110200.0,0.77366706]
[1748361267436,0.39763886,110210.0,110200.0,0.77366706]
[1748361267728,0.39775886,110210.0,110200.0,0.77366706]
[1748361267929,0.56775886,110210.0,110200.0,0.77366706]
[1748361269331,0.37775886,110210.0,110200.0,0.77366706]
[1748361270426,0.37775886,110210.0,110200.0,0.96962719]
[1748361270630,0.37775886,110210.0,110200.0,0.77366706]
[1748361272028,0.37775886,110210.0,110200.0,1.10210136]
[1748361272029,0.00125626,110210.0,110200.0,1.10210136]
[1748361272229,0.18273527,110230.0,110220.0,0.1813861]
[1748361272431,0.19273527,110230.0,110220.0,0.85027006]
[1748361272631,0.25325527,110230.0,110220.0,0.96707006]
[1748361272819,0.25325527,110230.0,110220.0,0.9670464]
[1748361273134,0.24325527,110230.0,110220.0,1.02110452]
[1748361273429,0.57313527,110230.0,110220.0,1.02110452]
[1748361273731,0.24425527,110230.0,110220.0,1.11331002]
[1748361274036,0.56425527,110230.0,110220.0,1.02331223]
[1748361274238,0.61975527,110230.0,110220.0,1.02331223]
[1748361274423,0.56425527,110230.0,110220.0,1.02331223]
[1748361274628,0.31425527,110230.0,110220.0,1.02331223]
[1748361275428,0.24413527,110230.0,110220.0,1.02331223]
[1748361275632,0.55425527,110230.0,110220.0,1.02331223]
[1748361275834,0.60975527,110230.0,110220.0,1.02331223]
[1748361277029,0.60975527,110230.0,110220.0,0.7589861]
[1748361278031,0.97055527,110230.0,110220.0,0.26423737]
[1748361278222,0.97055527,110230.0,110220.0,0.19175503]
[1748361278223,1.25514957,110230.0,110220.0,0.19175503]
[1748361278935,1.02815527,110230.0,110220.0,0.19175503]
[1748361280233,1.25514957,110230.0,110220.0,0.17388252]
[1748361280831,1.02815527,110230.0,110220.0,0.17388252]
[1748361281025,1.41449987,110230.0,110200.0,0.4319419]
[1748361281229,0.1814191,110200.0,110190.0,0.05912125]
[1748361281436,0.1814355,110190.0,110180.0,0.4820605]
[1748361281629,0.1814355,110190.0,110180.0,0.54955407]
[1748361281630,0.4783355,110190.0,110180.0,0.54955407]
[1748361282032,0.4783355,110190.0,110180.0,0.45882907]
[1748361282342,1.0291355,110190.0,110180.0,0.41348227]
[1748361282732,1.0291355,110190.0,110180.0,0.23203017]
[1748361282930,1.0291355,110190.0,110180.0,0.41348227]
[1748361283329,1.0291355,110190.0,110180.0,0.1895366]
[1748361283537,1.0291355,110190.0,110180.0,0.3759887]
[1748361284042,1.0291355,110190.0,110180.0,0.41945219]
[1748361284239,1.0291355,110190.0,110180.0,0.3669887]
[1748361284540,0.6683355,110190.0,110180.0,0.3679887]
[1748361284839,1.0291355,110190.0,110180.0,0.3679887]
[1748361285433,0.3883355,110190.0,110180.0,0.60070802]
[1748361286242,0.3884555,110190.0,110180.0,0.3679887]
[1748361286443,0.3884555,110190.0,110180.0,0.41541754]
[1748361286834,0.3315555,110190.0,110180.0,1.00893686]
[1748361287038,0.3315555,110190.0,110180.0,1.21422908]
[1748361287238,0.3315555,110190.0,110180.0,1.16022824]
[1748361287436,0.3314355,110190.0,110180.0,1.16022824]
[1748361287647,0.3315555,110190.0,110180.0,1.21422338]
[1748361287834,0.3315555,110190.0,110180.0,1.12205325]
[1748361288033,0.3315555,110190.0,110180.0,1.1601768]
[1748361289253,0.1815555,110190.0,110180.0,1.2601768]
[1748361289442,0.00012,110190.0,110180.0,1.2601768]
[1748361289638,0.00012,110190.0,110180.0,1.2601633]
[1748361291341,0.00012,110190.0,110180.0,1.16804461]
[1748361292048,0.18155576,110200.0,110190.0,0.1814355]
[1748361292248,0.18155576,110200.0,110190.0,1.80739999]
[1748361292249,0.06233626,110200.0,110190.0,1.80739999]
[1748361293648,0.06233626,110200.0,110190.0,1.80839999]
[1748361293845,0.06233626,110200.0,110190.0,1.80839634]
[1748361294047,0.06233626,110200.0,110190.0,1.80939634]
[1748361294351,0.00013626,110200.0,110190.0,1.80939634]
[1748361294548,0.00013626,110200.0,110190.0,1.86338232]
[1748361294847,0.00013626,110200.0,110190.0,1.82588624]
[1748361295049,0.00025626,110200.0,110190.0,1.89982641]
[1748361295438,0.00025626,110200.0,110190.0,2.09057441]
[1748361295642,0.00025626,110200.0,110190.0,1.99982641]
[1748361296764,0.02025626,110200.0,110190.0,1.99982641]
[1748361296944,0.02025626,110200.0,110190.0,2.00082641]
[1748361297950,0.02025626,110200.0,110190.0,2.00080809]
[1748361298453,0.02025626,110200.0,110190.0,1.57636809]
[1748361299052,0.02025626,110200.0,110190.0,1.58849954]
[1748361300053,0.02025626,110200.0,110190.0,1.41871713]
[1748361300245,0.02025626,110200.0,110190.0,1.35632626]
[1748361300640,0.00025626,110200.0,110190.0,1.54632626]
[1748361301852,0.69533027,110230.0,110220.0,0.1813859]
[1748361302158,0.93273027,110230.0,110220.0,0.41410522]
[1748361302348,0.93285027,110230.0,110220.0,0.53080522]
[1748361302663,0.93285027,110230.0,110220.0,0.2980859]
[1748361303254,0.99245027,110230.0,110220.0,0.3585859]
[1748361303454,0.99433027,110230.0,110220.0,0.3585859]
[1748361303753,0.99445027,110230.0,110220.0,0.3585859]
[1748361305443,0.93335027,110230.0,110220.0,0.1813859]
[1748361305643,0.80975027,110230.0,110220.0,0.1813859]
[1748361305842,1.17975027,110230.0,110220.0,0.27298975]
[1748361306045,0.81895027,110230.0,110220.0,0.27298975]
[1748361306247,0.81895027,110230.0,110220.0,0.49979573]
[1748361306448,0.59895027,110230.0,110220.0,0.499823]
[1748361306649,0.95975027,110230.0,110220.0,0.620323]
[1748361306850,0.59895027,110230.0,110220.0,0.45071702]
[1748361307758,0.50826227,110230.0,110220.0,0.40329339]
[1748361308355,0.50826227,110230.0,110220.0,1.04832881]
[1748361308356,0.27036157,110230.0,110220.0,1.04832881]
[1748361308548,0.45173097,110230.0,110220.0,1.22068174]
[1748361308854,0.30173097,110230.0,110220.0,1.11707471]
[1748361309050,0.30185097,110230.0,110220.0,1.11707471]
[1748361309656,0.30185097,110230.0,110220.0,1.15520305]
[1748361309851,0.29985097,110230.0,110220.0,1.15520305]
[1748361310051,0.31085097,110230.0,110220.0,1.15520305]
[1748361310757,0.31085097,110230.0,110220.0,1.15518161]
[1748361311161,0.30085097,110230.0,110220.0,1.15518161]
[1748361311359,0.30085097,110230.0,110220.0,0.79438161]
[1748361311562,0.30085097,110230.0,110220.0,0.92837563]
[1748361312463,0.31085097,110230.0,110220.0,0.92837563]
[1748361312758,0.31085097,110230.0,110220.0,0.83624534]
[1748361312966,0.11948157,110230.0,110220.0,1.06305132]
[1748361313161,0.14948157,110230.0,110220.0,1.58857132]
[1748361313349,0.33085117,110230.0,110220.0,1.58857132]
[1748361313662,0.14948157,110230.0,110220.0,1.58857132]
[1748361314465,0.33085097,110230.0,110220.0,1.58857132]
[1748361315056,0.33085097,110230.0,110220.0,1.58859241]
[1748361316070,0.33085097,110230.0,110220.0,1.06307241]
[1748361316363,0.33085097,110230.0,110220.0,1.00098643]
[1748361316663,0.33085097,110230.0,110220.0,1.00094643]
[1748361317161,0.33085097,110230.0,110220.0,0.47546643]
[1748361317365,0.33085097,110230.0,110220.0,0.95351734]
[1748361317765,0.33085097,110230.0,110220.0,0.77213144]
[1748361318070,0.33085097,110230.0,110220.0,0.95351734]
[1748361318452,0.30085097,110230.0,110220.0,0.95351734]
[1748361318659,0.51085097,110230.0,110220.0,0.95351734]
[1748361319054,0.31085097,110230.0,110220.0,0.95351734]
[1748361319657,0.31085097,110230.0,110220.0,1.00099908]
[1748361320874,0.31085097,110230.0,110220.0,1.02157563]
[1748361321074,0.60085097,110230.0,110220.0,0.31839563]
[1748361321371,0.60085097,110230.0,110220.0,0.84371563]
[1748361321666,0.40085097,110230.0,110220.0,0.64640161]
[1748361321965,0.40085107,110230.0,110220.0,0.75940161]
[1748361322365,0.40073107,110230.0,110220.0,0.75940161]
[1748361322563,0.21948157,110230.0,110220.0,0.81349979]
[1748361322868,0.11936157,110230.0,110220.0,1.29289555]
[1748361323055,0.11948157,110230.0,110220.0,1.29289555]
[1748361323466,0.06072,110230.0,110220.0,1.12036447]
[1748361323763,0.06072,110230.0,110220.0,1.06126328]
[1748361323969,0.0606,110230.0,110220.0,1.06126328]
[1748361324359,0.0606,110230.0,110220.0,1.12632649]
[1748361324558,0.06072,110230.0,110220.0,1.67160649]
[1748361324768,0.06072,110230.0,110220.0,1.57928345]
[1748361324958,0.06072,110230.0,110220.0,1.63339704]
[1748361325160,0.06072,110230.0,110220.0,1.67162095]
[1748361325468,0.06072,110230.0,110220.0,1.71162095]
[1748361326471,0.06072,110230.0,110220.0,1.71262095]
[1748361326860,0.06072,110230.0,110220.0,1.62028345]
[1748361327056,0.06072,110230.0,110220.0,1.54634328]
[1748361327260,0.00013626,110240.0,110230.0,0.1813694]
[1748361327468,0.00013626,110240.0,110230.0,1.04114678]
[1748361327469,0.05663626,110240.0,110230.0,1.04114678]
[1748361328170,0.11693626,110240.0,110230.0,1.04114678]
[1748361328373,0.29828926,110240.0,110230.0,1.04114678]
[1748361328669,0.12693626,110240.0,110230.0,1.04114678]
[1748361328871,0.30828926,110240.0,110230.0,1.10023654]
[1748361329372,0.30828926,110240.0,110230.0,1.10123654]
[1748361329868,0.30828926,110240.0,110230.0,0.71597761]
[1748361330070,0.30828926,110240.0,110230.0,0.66186443]
[1748361331871,0.30828926,110240.0,110230.0,0.66192477]
[1748361332572,0.30828926,110240.0,110230.0,0.56072477]
[1748361332768,0.30828926,110240.0,110230.0,1.08592477]
[1748361333273,0.12693626,110240.0,110230.0,1.31273075]
[1748361333475,0.30840926,110240.0,110230.0,1.31273075]
[1748361333875,0.30840926,110240.0,110230.0,1.08592477]
[1748361334076,0.30840926,110240.0,110230.0,1.31273075]
[1748361334275,0.30840926,110240.0,110230.0,0.26186293]
[1748361334475,0.29840926,110240.0,110230.0,0.69595535]
[1748361334680,0.85920926,110240.0,110230.0,0.21098065]
[1748361334868,0.85920926,110240.0,110230.0,0.45145551]
[1748361335179,0.85920926,110240.0,110230.0,0.3000268]
[1748361335366,0.85920926,110240.0,110230.0,0.23438777]
[1748361335367,1.50997524,110240.0,110230.0,0.23438777]
[1748361335675,1.50997524,110240.0,110230.0,0.06594791]
[1748361335676,1.85069124,110240.0,110230.0,0.06594791]
[1748361335877,1.85069124,110240.0,110230.0,0.09550642]
[1748361336073,1.85069124,110240.0,110230.0,0.05118508]
[1748361336382,1.62388526,110240.0,110230.0,0.05018508]
[1748361336874,1.85169124,110240.0,110230.0,0.05018508]
[1748361337781,1.85157124,110240.0,110230.0,0.14205288]
[1748361338169,1.85169124,110240.0,110230.0,0.14205288]
[1748361339276,1.85169124,110240.0,110230.0,0.05018508]
[1748361339277,1.70289124,110240.0,110230.0,0.05018508]
[1748361339481,1.95289124,110240.0,110230.0,0.07234836]
[1748361340166,1.95289124,110240.0,110230.0,0.02955851]
[1748361340366,1.95289124,110240.0,110230.0,0.04277724]
[1748361340567,1.95289124,110240.0,110230.0,0.07233575]
[1748361340775,1.95289124,110240.0,110230.0,0.04277724]
[1748361342269,1.95289124,110240.0,110230.0,0.09028353]
[1748361343781,1.95289124,110240.0,110230.0,0.04277724]
[1748361344177,0.1813694,110230.0,110220.0,0.07388918]
[1748361344475,1.30797538,110230.0,110220.0,0.12138294]
[1748361344680,1.39869938,110230.0,110220.0,0.14198143]
[1748361345484,1.39869938,110230.0,110220.0,0.14298143]
[1748361345677,1.39869938,110230.0,110220.0,0.09548767]
[1748361345880,1.39869938,110230.0,110220.0,0.051157]
[1748361346073,1.39869938,110230.0,110220.0,0.0437418]
[1748361348886,1.39869938,110230.0,110220.0,0.04371408]
[1748361350686,1.5050894,110230.0,110220.0,0.04371408]
[1748361350887,1.5050894,110230.0,110220.0,0.24307259]
[1748361350888,1.1822494,110230.0,110220.0,0.24307259]
[1748361351092,1.6062894,110230.0,110220.0,0.24307259]
[1748361351384,1.6061694,110230.0,110220.0,0.24307259]
[1748361351594,1.6062894,110230.0,110220.0,0.24307259]
[1748361351779,1.0812894,110230.0,110220.0,0.24307259]
[1748361352089,1.6062894,110230.0,110220.0,0.24307259]
[1748361352389,1.83309538,110230.0,110220.0,0.24307259]
[1748361352586,1.83309538,110230.0,110220.0,0.07322894]
[1748361352780,1.83309538,110230.0,110220.0,0.04367043]
[1748361352980,1.83309538,110230.0,110220.0,0.03055851]
[1748361353192,1.83309538,110230.0,110220.0,0.07322788]
[1748361353890,1.83309538,110230.0,110220.0,0.04366937]
[1748361354289,1.83293538,110230.0,110220.0,0.04366937]
[1748361354485,1.83305538,110230.0,110220.0,0.18172788]
[1748361356282,1.6061294,110230.0,110220.0,0.18172788]
[1748361356685,1.6062494,110230.0,110220.0,0.18172788]
[1748361358976,1.83305538,110230.0,110220.0,0.18172788]
[1748361359783,1.83301538,110230.0,110220.0,0.18172788]
[1748361360479,1.30809538,110230.0,110220.0,0.18172788]
[1748361360702,0.5514894,110230.0,110220.0,0.9729299]
[1748361360895,0.5513694,110230.0,110220.0,0.94651788]
[1748361361086,0.5514894,110230.0,110220.0,0.89904072]
[1748361361286,0.5513694,110230.0,110220.0,0.95814608]
[1748361361498,0.5513694,110230.0,110220.0,0.87849138]
[1748361361797,0.5514894,110230.0,110220.0,0.8990187]
[1748361361996,0.3914894,110230.0,110220.0,1.00560466]
[1748361362488,0.3914894,110230.0,110220.0,1.01560466]
[1748361363684,0.3914894,110230.0,110220.0,1.06969794]
[1748361364094,0.3914894,110230.0,110220.0,1.1735789]
[1748361364398,0.3914894,110230.0,110220.0,1.06969794]
[1748361364582,0.3914894,110230.0,110220.0,1.1735789]
[1748361364783,0.3914894,110230.0,110220.0,1.5973789]
[1748361364992,0.7522894,110230.0,110220.0,0.30070656]
[1748361365186,0.8085894,110230.0,110220.0,0.48209196]
[1748361365786,0.8085894,110230.0,110220.0,0.482193]
[1748361366291,0.4477894,110230.0,110220.0,0.482193]
[1748361367888,0.4477894,110230.0,110220.0,0.58607396]
[1748361368089,0.4477894,110230.0,110220.0,0.66841862]
[1748361368293,0.4477894,110230.0,110220.0,0.56453766]
[1748361370089,0.4477894,110230.0,110220.0,0.56451187]
[1748361370594,0.4477894,110230.0,110220.0,0.5103973]
[1748361371484,0.3914894,110230.0,110220.0,0.8711973]
[1748361371684,0.3914894,110230.0,110220.0,1.09800328]
[1748361371884,0.3913694,110230.0,110220.0,1.09800328]
[1748361372098,0.3914894,110230.0,110220.0,1.09800328]
[1748361372298,0.3914894,110230.0,110220.0,0.8711973]
[1748361372701,0.3914894,110230.0,110220.0,0.5103973]
[1748361372900,0.3914894,110230.0,110220.0,0.56450118]
[1748361373489,0.3914894,110230.0,110220.0,0.17755375]
[1748361373490,1.03359538,110230.0,110220.0,0.17755375]
[1748361373690,1.03359538,110230.0,110220.0,0.25959441]
[1748361373691,1.09269538,110230.0,110220.0,0.25959441]
[1748361373890,1.14949538,110230.0,110220.0,0.16724975]
[1748361374193,1.14949538,110230.0,110220.0,0.19722195]
[1748361374194,0.9226894,110230.0,110220.0,0.19722195]
[1748361374396,1.57317538,110230.0,110220.0,0.19722195]
[1748361374587,1.3463694,110230.0,110220.0,0.25632265]
[1748361374792,1.3463694,110230.0,110220.0,0.22578888]
[1748361375099,1.3483694,110230.0,110220.0,0.22578888]
[1748361376801,1.3482494,110230.0,110220.0,0.22578888]
[1748361377203,1.3483694,110230.0,110220.0,0.22578888]
[1748361377895,1.2324694,110230.0,110220.0,0.40717428]
[1748361378088,1.2324694,110230.0,110220.0,0.52087852]
[1748361378292,1.2323494,110230.0,110220.0,0.57998388]
[1748361378489,1.2323494,110230.0,110220.0,0.57998963]
[1748361378490,0.8715494,110230.0,110220.0,0.57998963]
[1748361378693,1.2324694,110230.0,110220.0,0.47610867]
[1748361378891,1.2324694,110230.0,110220.0,0.47610853]
[1748361378892,0.8087894,110230.0,110220.0,0.47610853]
[1748361379097,0.8087894,110230.0,110220.0,0.42198939]
[1748361379302,0.8086694,110230.0,110220.0,0.37447475]
[1748361379601,0.8087894,110230.0,110220.0,0.37447475]
[1748361379805,0.8087894,110230.0,110220.0,0.47539475]
[1748361380696,0.4479894,110230.0,110220.0,0.47539475]
[1748361380901,0.8087894,110230.0,110220.0,0.47539475]
[1748361382001,0.8087894,110230.0,110220.0,0.19308935]
[1748361382206,0.9218894,110230.0,110220.0,0.33296684]
[1748361382409,0.9218894,110230.0,110220.0,0.24062684]
[1748361382609,0.9218894,110230.0,110220.0,0.24064987]
[1748361383205,0.9218894,110230.0,110220.0,0.33298987]
[1748361383413,1.14869538,110230.0,110220.0,0.06854451]
[1748361383719,1.14869538,110230.0,110220.0,0.06532822]
[1748361387012,1.14869538,110230.0,110220.0,0.06531495]
[1748361387411,1.3454494,110230.0,110220.0,0.17911495]
[1748361387915,1.3453294,110230.0,110220.0,0.17911495]
[1748361388118,1.3454494,110230.0,110220.0,0.17911495]
[1748361388607,1.3454494,110230.0,110220.0,0.04047579]
[1748361389314,1.57225538,110230.0,110220.0,0.04047579]
[1748361391219,0.1813846,110220.0,110210.0,0.53794522]
[1748361391425,0.9927846,110220.0,110210.0,0.53794522]
[1748361391716,0.9927846,110220.0,110210.0,0.68940386]
[1748361391918,0.9927846,110220.0,110210.0,0.80400386]
[1748361392114,0.9927846,110220.0,110210.0,0.70308386]
[1748361392318,0.9927846,110220.0,110210.0,0.51333849]
[1748361392611,0.9927846,110220.0,110210.0,0.57194151]
[1748361392821,1.21959058,110220.0,110210.0,0.39054741]
[1748361393005,1.21959058,110220.0,110210.0,0.21724741]
[1748361393211,1.22059058,110220.0,110210.0,0.21724741]
[1748361395416,0.9937846,110220.0,110210.0,0.21724741]
[1748361395612,1.0565046,110220.0,110210.0,0.39864871]
[1748361395812,1.4173046,110220.0,110210.0,0.51004871]
[1748361396519,1.4173046,110220.0,110210.0,0.32864741]
[1748361396820,1.4173046,110220.0,110210.0,0.37612096]
[1748361397319,1.22059058,110220.0,110210.0,0.26472096]
[1748361397615,1.64407058,110220.0,110210.0,0.16076844]
[1748361397812,1.64407058,110220.0,110210.0,0.10671517]
[1748361398425,1.22059058,110220.0,110210.0,0.10671517]
[1748361398613,1.64407058,110220.0,110210.0,0.10671517]
[1748361399723,1.64407058,110220.0,110210.0,0.10671872]
[1748361400419,1.4172646,110220.0,110210.0,0.10671872]
[1748361400619,1.64407058,110220.0,110210.0,0.18490373]
[1748361400818,1.4172646,110220.0,110210.0,0.18490373]
[1748361401021,0.1814013,110210.0,110200.0,0.62273304]
[1748361401223,0.6436013,110210.0,110200.0,0.57737874]
[1748361402311,0.6436013,110210.0,110200.0,0.93917874]
[1748361402912,0.6436013,110210.0,110200.0,0.9925608]
[1748361403120,0.6436013,110210.0,110200.0,1.07804142]
[1748361403925,0.6436013,110210.0,110200.0,1.07804717]
[1748361404128,0.6436013,110210.0,110200.0,1.12424717]
[1748361404323,0.6436013,110210.0,110200.0,1.12424655]
[1748361405724,0.3757013,110210.0,110200.0,1.13424655]
[1748361406025,0.3758213,110210.0,110200.0,1.13424655]
[1748361407217,0.4321213,110210.0,110200.0,1.13424655]
[1748361407816,0.4321213,110210.0,110200.0,1.14609923]
[1748361408227,0.4321213,110210.0,110200.0,1.14609699]
[1748361408925,0.4321213,110210.0,110200.0,1.13428033]
[1748361409220,0.82892728,110210.0,110200.0,0.5176105]
[1748361409420,0.82892728,110210.0,110200.0,0.42115998]
[1748361409421,0.88802728,110210.0,110200.0,0.42115998]
[1748361409614,0.88802728,110210.0,110200.0,0.34721981]
[1748361410120,0.88802728,110210.0,110200.0,0.20485627]
[1748361410514,0.88802728,110210.0,110200.0,0.19485627]
[1748361410711,0.88802728,110210.0,110200.0,0.10240427]
[1748361411117,0.88802728,110210.0,110200.0,0.16151706]
[1748361411516,0.88802728,110210.0,110200.0,0.11463416]
[1748361411918,0.88802728,110210.0,110200.0,0.06011279]
[1748361412113,0.88802728,110210.0,110200.0,0.04532948]
[1748361412422,1.24882728,110210.0,110200.0,0.04532948]
[1748361412725,1.24882728,110210.0,110200.0,0.07488339]
[1748361413019,1.24882728,110210.0,110200.0,0.03055391]
[1748361414225,1.24882728,110210.0,110200.0,0.05269714]
[1748361415715,1.33956728,110210.0,110200.0,0.02314323]
[1748361416531,1.33956728,110210.0,110200.0,0.02312952]
[1748361417426,1.33956728,110210.0,110180.0,0.19302725]
[1748361417427,0.1814336,110190.0,110180.0,0.13558637]
[1748361417728,1.52239958,110190.0,110180.0,0.1824041]
[1748361418021,1.63279958,110190.0,110180.0,0.1824041]
[1748361418225,1.68769958,110190.0,110180.0,0.1824041]
[1748361418428,2.04849958,110190.0,110180.0,0.04681773]
[1748361418617,2.04849958,110190.0,110180.0,0.04981773]
[1748361419014,2.04849958,110190.0,110180.0,0.05281773]
[1748361419431,2.04861958,110190.0,110180.0,0.05281773]
[1748361419627,1.62525958,110190.0,110180.0,0.05281773]
[1748361419826,1.62513958,110190.0,110180.0,0.23426773]
[1748361420026,1.68781958,110190.0,110180.0,0.29096773]
[1748361420220,1.68781958,110190.0,110180.0,0.10951773]
[1748361420420,1.68769958,110190.0,110180.0,0.10951773]
[1748361420722,1.68781958,110190.0,110180.0,0.16548129]
[1748361421821,1.4610136,110190.0,110180.0,0.16548129]
[1748361422119,0.9814536,110190.0,110180.0,0.39313139]
[1748361422320,0.9264336,110190.0,110180.0,0.39312]
[1748361422623,0.9265536,110190.0,110180.0,0.39312]
[1748361423228,0.9265536,110190.0,110180.0,0.20520504]
[1748361423425,0.9856536,110190.0,110180.0,0.20520504]
[1748361425029,0.9856536,110190.0,110180.0,0.2282199]
[1748361425233,1.0456536,110190.0,110180.0,0.18145]
[1748361425435,1.27245958,110190.0,110180.0,0.18145]
[1748361426429,1.27245958,110190.0,110180.0,0.24145]
[1748361426829,0.6848536,110190.0,110180.0,0.24145]
[1748361427029,1.0481736,110190.0,110180.0,0.29985]
[1748361427230,0.6248536,110190.0,110180.0,0.29985]
[1748361427434,0.6247336,110190.0,110180.0,0.29985]
[1748361427739,0.6248536,110190.0,110180.0,0.29985]
[1748361430540,0.6248536,110190.0,110180.0,0.30175]
[1748361431236,0.6248536,110190.0,110180.0,0.66255]
[1748361433242,0.1814501,110180.0,110170.0,0.74902833]
[1748361433535,0.4383501,110180.0,110170.0,0.9100965]
[1748361433745,0.4943501,110180.0,110170.0,0.9100965]
[1748361434126,0.4943501,110180.0,110170.0,0.9661965]
[1748361434527,0.4943501,110180.0,110170.0,0.9710965]
[1748361435135,0.4943501,110180.0,110170.0,0.6123965]
[1748361435339,0.4943501,110180.0,110170.0,0.47336353]
[1748361435535,0.1968,110180.0,110170.0,1.06026887]
[1748361435743,0.00012,110190.0,110180.0,0.1814501]
[1748361435945,0.2825799,110200.0,110190.0,0.1814336]
[1748361436241,0.6325799,110200.0,110190.0,1.09873394]
[1748361436538,0.6326999,110200.0,110190.0,1.19099859]
[1748361436733,0.6326999,110200.0,110190.0,1.09873394]
[1748361436934,0.6326999,110200.0,110190.0,1.27626207]
[1748361437129,0.5873416,110200.0,110190.0,1.27626207]
[1748361437438,0.2372166,110200.0,110190.0,1.91709859]
[1748361437642,0.2373366,110200.0,110190.0,1.90809859]
[1748361437846,0.2372166,110200.0,110190.0,1.83436181]
[1748361438139,0.2373366,110200.0,110190.0,1.83536181]
[1748361438339,0.2373366,110200.0,110190.0,1.79229212]
[1748361440647,0.2373366,110200.0,110190.0,1.47473814]
[1748361440839,0.2373366,110200.0,110190.0,1.70154412]
[1748361441034,0.05592,110200.0,110190.0,1.70154412]
[1748361441448,0.2373366,110200.0,110190.0,1.59772827]
[1748361441747,0.05592,110200.0,110190.0,1.69772827]
[1748361442248,0.05592,110200.0,110190.0,1.89995231]
[1748361442440,0.2373356,110200.0,110190.0,1.89995231]
[1748361443242,0.2373356,110200.0,110190.0,1.84666148]
[1748361444040,0.2373356,110200.0,110190.0,1.6198555]
[1748361444241,0.2373357,110200.0,110190.0,1.84666148]
[1748361444841,0.2373357,110200.0,110190.0,1.80767325]
[1748361445143,0.2373357,110200.0,110190.0,1.69767325]
[1748361445648,0.2373357,110200.0,110190.0,1.17363325]